[Event "New Zealand Rapid Championship"]
[Site "Wellington"]
[Date "2023.01.12"]
[Round "5.11"]
[White "Wang, Justin Zhide"]
[Black "Tang, Hao"]
[Result "1-0"]
[TimeControl "25+5"]
[WhiteFideId "4312830"]
[BlackFideId "4311280"]
[WhiteElo "1619"]
[BlackElo "1846"]

1. e4 {[%clk 00:25:10]} c5 {[%clk 00:25:08]} {[%emt 00:00:14]} 2. Nc3 {[%clk
00:25:10]} d6 {[%clk 00:25:11]} 3. f4 {[%clk 00:25:08]} {[%emt 00:00:02]} a6
{[%clk 00:25:12]} {[%emt 00:00:11]} 4. Nf3 {[%clk 00:25:04]} Nc6 {[%clk
00:25:12]} {[%emt 00:00:05]} 5. d3 {[%clk 00:24:46]} {[%emt 00:00:24]} e6
{[%clk 00:25:11]} {[%emt 00:00:06]} 6. g3 {[%clk 00:24:48]} {[%emt 00:00:04]}
Nf6 {[%clk 00:25:07]} {[%emt 00:00:08]} 7. Bg2 {[%clk 00:24:49]} {[%emt
00:00:04]} Be7 {[%clk 00:25:04]} {[%emt 00:00:08]} 8. O-O {[%clk 00:24:49]}
{[%emt 00:00:14]} O-O 9. h3 {[%clk 00:24:24]} {[%emt 00:00:26]} Qc7 {[%clk
00:24:29]} {[%emt 00:00:38]} 10. a3 {[%clk 00:22:50]} {[%emt 00:01:40]} b5
{[%clk 00:24:27]} {[%emt 00:00:07]} 11. g4 {[%clk 00:22:48]} {[%emt 00:00:08]}
d5 {[%clk 00:22:49]} {[%emt 00:01:42]} 12. exd5 {[%clk 00:22:02]} {[%emt
00:00:51]} Nxd5 {[%clk 00:22:11]} {[%emt 00:00:42]} 13. Nxd5 {[%clk 00:20:32]}
{[%emt 00:01:39]} exd5 {[%clk 00:22:14]} 14. Re1 {[%clk 00:19:52]} {[%emt
00:00:44]} Bd6 {[%clk 00:21:50]} {[%emt 00:00:28]} 15. Ne5 {[%clk 00:17:29]}
{[%emt 00:02:28]} Nxe5 16. fxe5 {[%clk 00:17:21]} Bxe5 {[%clk 00:18:31]} {[%emt
00:00:10]} 17. Bxd5 {[%clk 00:17:10]} {[%emt 00:00:16]} Bd4+ {[%clk 00:17:29]}
{[%emt 00:01:06]} 18. Kg2 {[%clk 00:16:26]} {[%emt 00:01:03]} Bb7 {[%clk
00:16:24]} {[%emt 00:00:56]} 19. Qf3 {[%clk 00:16:19]} {[%emt 00:00:22]} Bxd5
{[%clk 00:15:52]} {[%emt 00:00:34]} 20. Qxd5 {[%clk 00:16:16]} {[%emt
00:00:02]} Rae8 {[%clk 00:15:39]} {[%emt 00:00:22]} 21. Re4 {[%clk 00:15:29]}
{[%emt 00:00:49]} Rxe4 {[%clk 00:15:04]} {[%emt 00:00:48]} 22. Qxe4 {[%clk
00:15:32]} Qd7 {[%clk 00:14:02]} {[%emt 00:01:21]} 23. c3 {[%clk 00:14:37]}
{[%emt 00:00:51]} Re8 {[%clk 00:13:51]} {[%emt 00:00:05]} 24. Qf3 {[%clk
00:14:36]} {[%emt 00:00:11]} Be5 {[%clk 00:13:31]} {[%emt 00:00:23]} 25. Bg5
{[%clk 00:14:08]} {[%emt 00:00:30]} Bb8 {[%emt 00:04:31]} 26. Rf1 {[%clk
00:14:05]} f6 {[%clk 00:11:53]} 27. Bh4 {[%clk 00:13:59]} Qe6 {[%clk 00:11:05]}
28. Re1 {[%clk 00:13:55]} Qd7 {[%clk 00:10:53]} 29. Rxe8+ {[%clk 00:13:29]}
Qxe8 {[%clk 00:10:57]} 30. Qd5+ {[%clk 00:13:32]} Kh8 {[%clk 00:10:52]} 31.
Qxc5 {[%clk 00:13:21]} Qe2+ {[%clk 00:10:40]} {[%emt 00:00:12]} 32. Bf2 {[%clk
00:13:24]} {[%emt 00:00:02]} Qe8 {[%clk 00:10:13]} {[%emt 00:00:31]} 33. Qe3
{[%clk 00:13:21]} {[%emt 00:00:10]} Qc6+ {[%clk 00:10:05]} {[%emt 00:00:12]} 34.
Qf3 {[%clk 00:13:22]} {[%emt 00:00:05]} Qd7 {[%clk 00:09:50]} {[%emt 00:00:19]}
35. Qa8 {[%clk 00:13:19]} {[%emt 00:00:09]} Qc7 {[%clk 00:09:49]} {[%emt
00:00:05]} 36. Qf3 {[%clk 00:12:44]} {[%emt 00:00:40]} Qh2+ {[%clk 00:09:05]}
{[%emt 00:00:49]} 37. Kf1 {[%clk 00:12:49]} h6 {[%clk 00:09:00]} {[%emt
00:00:11]} 38. d4 {[%clk 00:12:44]} {[%emt 00:00:10]} Qc7 {[%clk 00:08:05]}
{[%emt 00:01:00]} 39. Qe3 {[%clk 00:11:13]} {[%emt 00:01:36]} Qc6 {[%clk
00:07:45]} {[%emt 00:00:27]} 40. Ke1 {[%clk 00:10:38]} {[%emt 00:00:39]} Kh7
{[%clk 00:07:41]} {[%emt 00:00:09]} 41. Kd2 {[%clk 00:10:27]} {[%emt 00:00:16]}
Qd5 {[%clk 00:05:57]} {[%emt 00:01:46]} 42. Kc2 {[%clk 00:10:00]} {[%emt
00:00:34]} Bd6 {[%clk 00:05:30]} {[%emt 00:00:31]} 43. Qd3+ {[%clk 00:09:54]}
{[%emt 00:00:12]} Kh8 {[%clk 00:05:11]} {[%emt 00:00:24]} 44. Qe3 {[%clk
00:09:08]} {[%emt 00:00:51]} Kh7 {[%clk 00:04:39]} {[%emt 00:00:38]} 45. h4
{[%clk 00:08:26]} {[%emt 00:00:46]} Qg2 {[%clk 00:04:14]} {[%emt 00:00:30]} 46.
Qe2 {[%clk 00:07:43]} {[%emt 00:00:47]} Kh8 {[%clk 00:03:48]} {[%emt 00:00:32]}
47. Kd3 {[%clk 00:05:54]} {[%emt 00:01:53]} Qh3+ {[%clk 00:03:06]} {[%emt
00:00:47]} 48. Kc2 {[%clk 00:05:35]} {[%emt 00:00:25]} Qg2 {[%clk 00:02:55]}
{[%emt 00:00:16]} 49. Kd2 {[%clk 00:04:37]} {[%emt 00:01:03]} Bf4+ {[%clk
00:02:40]} {[%emt 00:00:20]} 50. Be3 {[%clk 00:04:41]} {[%emt 00:00:02]} Bxe3+
{[%clk 00:02:40]} {[%emt 00:00:05]} 51. Kxe3 {[%clk 00:04:44]} {[%emt
00:00:02]} Qg3+ {[%clk 00:02:38]} {[%emt 00:00:06]} 52. Qf3 {[%clk 00:04:26]}
{[%emt 00:00:24]} Qxh4 {[%clk 00:02:40]} {[%emt 00:00:04]} 53. Qa8+ {[%clk
00:03:05]} {[%emt 00:01:26]} Kh7 {[%clk 00:02:43]} {[%emt 00:00:02]} 54. Qe4+
{[%clk 00:03:09]} {[%emt 00:00:01]} Kh8 {[%clk 00:02:43]} {[%emt 00:00:04]} 55.
d5 {[%clk 00:03:03]} {[%emt 00:00:11]} Qe1+ {[%clk 00:02:27]} {[%emt 00:00:21]}
56. Kd4 {[%clk 00:03:07]} Qd2+ {[%clk 00:02:21]} {[%emt 00:00:11]} 57. Kc5
{[%clk 00:02:56]} {[%emt 00:00:17]} Qxb2 {[%clk 00:02:22]} {[%emt 00:00:03]} 58.
d6 {[%clk 00:02:44]} {[%emt 00:00:17]} Qxc3+ {[%clk 00:02:17]} {[%emt
00:00:10]} 59. Kb6 {[%clk 00:02:45]} {[%emt 00:00:04]} Qd2 {[%clk 00:00:28]}
{[%emt 00:01:54]} 60. Qc6 {[%clk 00:02:31]} {[%emt 00:00:20]} Qe3+ {[%clk
00:00:12]} {[%emt 00:00:20]} 61. Kb7 {[%clk 00:02:31]} {[%emt 00:00:05]} Qe6
{[%clk 00:00:06]} {[%emt 00:00:11]} 62. d7 {[%clk 00:02:25]} {[%emt 00:00:12]}
1-0

[Event "New Zealand Rapid Championship"]
[Site "Wellington"]
[Date "2023.01.12"]
[Round "5.12"]
[White "Winter, Ryan"]
[Black "Van Der Krogt, Adrian"]
[Result "1-0"]
[TimeControl "25+5"]
[WhiteFideId "4306295"]
[BlackFideId "4319567"]
[WhiteElo "2117"]
[BlackElo "1133"]

1. e4 {[%clk 00:25:08]} c6 {[%clk 00:24:59]} {[%emt 00:00:10]} 2. d4 {[%clk
00:25:07]} {[%emt 00:00:05]} d6 {[%clk 00:24:58]} {[%emt 00:00:05]} 3. Nc3
{[%clk 00:24:47]} {[%emt 00:00:26]} Nf6 {[%clk 00:25:01]} {[%emt 00:00:02]} 4.
Nge2 {[%clk 00:24:40]} {[%emt 00:00:12]} Qc7 {[%clk 00:22:17]} {[%emt
00:02:50]} 5. h3 {[%clk 00:24:17]} {[%emt 00:00:27]} e5 {[%clk 00:19:04]}
{[%emt 00:03:18]} 6. g4 {[%clk 00:23:54]} {[%emt 00:00:28]} Be7 {[%clk
00:17:40]} {[%emt 00:01:29]} 7. Bg2 {[%clk 00:23:21]} {[%emt 00:00:38]} b5
{[%clk 00:12:02]} {[%emt 00:05:43]} 8. a3 {[%clk 00:20:39]} {[%emt 00:02:48]}
h6 {[%clk 00:11:12]} {[%emt 00:00:55]} 9. O-O {[%clk 00:18:42]} {[%emt
00:02:01]} g5 {[%clk 00:10:04]} {[%emt 00:01:19]} 10. Ng3 {[%clk 00:18:00]}
{[%emt 00:00:42]} Nbd7 {[%clk 00:08:17]} {[%emt 00:02:02]} 11. Nf5 {[%clk
00:14:59]} {[%emt 00:04:58]} Bf8 {[%clk 00:05:28]} {[%emt 00:00:52]} 12. Ng3
{[%clk 00:12:48]} {[%emt 00:02:16]} Be7 {[%clk 00:05:11]} {[%emt 00:00:22]} 13.
d5 {[%clk 00:12:39]} {[%emt 00:00:14]} Bb7 {[%clk 00:04:36]} {[%emt 00:00:40]}
14. dxc6 {[%clk 00:11:46]} {[%emt 00:00:58]} Bxc6 {[%clk 00:04:39]} {[%emt
00:00:01]} 15. Re1 {[%clk 00:10:57]} {[%emt 00:00:54]} a5 {[%clk 00:04:08]}
{[%emt 00:00:37]} 16. Nd5 {[%clk 00:09:39]} {[%emt 00:01:23]} Bxd5 {[%clk
00:02:33]} {[%emt 00:01:41]} 17. exd5 {[%clk 00:09:43]} {[%emt 00:00:02]} Rc8
{[%clk 00:02:13]} {[%emt 00:00:25]} 18. Re2 {[%clk 00:08:54]} {[%emt 00:00:53]}
Nb6 {[%clk 00:01:53]} {[%emt 00:00:25]} 19. c3 {[%clk 00:07:56]} {[%emt
00:01:03]} Nc4 {[%clk 00:01:27]} {[%emt 00:00:31]} 20. a4 {[%clk 00:07:18]}
{[%emt 00:00:44]} b4 {[%clk 00:00:59]} {[%emt 00:00:32]} 21. cxb4 {[%clk
00:06:40]} {[%emt 00:00:42]} axb4 {[%clk 00:01:03]} {[%emt 00:00:01]} 22. Rc2
{[%clk 00:04:31]} {[%emt 00:02:14]} Qb7 {[%clk 00:00:58]} {[%emt 00:00:10]} 23.
a5 {[%clk 00:04:18]} {[%emt 00:00:18]} Nd7 {[%clk 00:00:58]} {[%emt 00:00:05]}
24. Bf1 {[%clk 00:04:13]} {[%emt 00:00:10]} Nxa5 {[%clk 00:00:12]} {[%emt
00:00:52]} 25. Rxc8+ {[%clk 00:04:07]} {[%emt 00:00:10]} Qxc8 {[%clk 00:00:16]}
26. Rxa5 {[%clk 00:04:11]} {[%emt 00:00:02]} f6 {[%clk 00:00:16]} {[%emt
00:00:04]} 27. Nf5 {[%clk 00:04:12]} {[%emt 00:00:03]} Bf8 {[%clk 00:00:21]} 28.
Bb5 {[%clk 00:04:06]} {[%emt 00:00:12]} Kf7 {[%clk 00:00:25]} 29. Ra7 {[%clk
00:04:07]} {[%emt 00:00:04]} Qc5 {[%clk 00:00:09]} {[%emt 00:00:21]} 30. Rxd7+
{[%clk 00:04:07]} {[%emt 00:00:05]} Kg8 {[%clk 00:00:13]} 31. Bc6 {[%clk
00:04:06]} {[%emt 00:00:06]} Rh7 {[%clk 00:00:13]} {[%emt 00:00:06]} 32. Be3
{[%clk 00:04:03]} {[%emt 00:00:07]} Qc4 {[%clk 00:00:16]} {[%emt 00:00:02]} 33.
Rxh7 {[%clk 00:03:59]} {[%emt 00:00:09]} Kxh7 {[%clk 00:00:20]} 34. Qa4 {[%clk
00:03:54]} {[%emt 00:00:10]} Qe2 {[%clk 00:00:09]} {[%emt 00:00:17]} 35. Qa7+
{[%clk 00:03:57]} {[%emt 00:00:02]} Kg8 {[%clk 00:00:11]} {[%emt 00:00:02]} 36.
Be8 {[%clk 00:03:47]} {[%emt 00:00:16]} Qf3 {[%clk 00:00:06]} {[%emt 00:00:11]}
37. Qf7+ {[%clk 00:03:47]} {[%emt 00:00:05]} Kh8 {[%clk 00:00:10]} 38. Qxf8+
{[%clk 00:03:49]} {[%emt 00:00:02]} Kh7 {[%clk 00:00:14]} 39. Qg7# {[%clk
00:03:53]} {[%emt 00:00:02]} 1-0

[Event "New Zealand Rapid Championship"]
[Site "Wellington"]
[Date "2023.01.12"]
[Round "5.13"]
[White "Dive, Russell J"]
[Black "Yu, Weiyang (Cadence)"]
[Result "1-0"]
[TimeControl "25+5"]
[WhiteTitle "IM"]
[WhiteFideId "4300106"]
[BlackFideId "4313135"]
[WhiteElo "2367"]
[BlackElo "1433"]

1. Nf3 {[%clk 00:25:08]} {[%emt 16:07:27]} d5 {[%clk 00:25:09]} 2. c4 {[%clk
00:25:12]} e6 {[%clk 00:25:07]} 3. g3 {[%clk 00:25:15]} {[%emt 00:00:01]} a6
{[%clk 00:25:07]} {[%emt 00:00:12]} 4. b3 {[%clk 00:25:10]} {[%emt 00:00:03]}
c5 {[%clk 00:24:44]} {[%emt 00:00:28]} 5. cxd5 {[%clk 00:24:55]} {[%emt
00:00:20]} exd5 {[%clk 00:24:42]} {[%emt 00:00:07]} 6. Bg2 {[%clk 00:24:47]}
{[%emt 00:00:15]} Nf6 {[%clk 00:24:01]} {[%emt 00:00:44]} 7. O-O {[%clk
00:24:47]} {[%emt 00:00:04]} Be7 {[%clk 00:23:47]} {[%emt 00:00:20]} 8. d4
{[%clk 00:24:49]} {[%emt 00:00:03]} b6 {[%clk 00:20:50]} {[%emt 00:03:02]} 9.
Ne5 {[%clk 00:22:24]} {[%emt 00:02:30]} Bb7 {[%clk 00:19:02]} {[%emt 00:01:54]}
10. Nc3 {[%clk 00:22:09]} {[%emt 00:00:19]} Nbd7 {[%clk 00:16:43]} {[%emt
00:02:24]} 11. Bf4 {[%clk 00:22:00]} {[%emt 00:00:14]} Ra7 {[%clk 00:13:18]}
{[%emt 00:03:33]} 12. e3 {[%clk 00:21:49]} {[%emt 00:00:19]} O-O {[%clk
00:11:43]} {[%emt 00:01:36]} 13. Rc1 {[%clk 00:21:51]} {[%emt 00:00:01]} cxd4
{[%clk 00:09:24]} {[%emt 00:02:24]} 14. exd4 {[%clk 00:20:44]} {[%emt
00:01:12]} Ne4 {[%clk 00:08:58]} {[%emt 00:00:38]} 15. Nxe4 {[%clk 00:20:04]}
{[%emt 00:00:38]} dxe4 {[%clk 00:09:00]} {[%emt 00:00:22]} 16. Qe2 {[%clk
00:19:00]} {[%emt 00:01:07]} Nf6 {[%clk 00:07:40]} {[%emt 00:01:08]} 17. Rfd1
{[%clk 00:19:03]} {[%emt 00:00:02]} h6 {[%clk 00:06:50]} {[%emt 00:04:38]} 18.
d5 {[%clk 00:18:22]} Ba3 {[%clk 00:04:10]} 19. Rc2 {[%clk 00:17:20]} {[%emt
00:00:55]} g5 {[%clk 00:03:03]} {[%emt 00:01:12]} 20. Nc6 {[%clk 00:16:43]}
{[%emt 00:00:42]} Bxc6 {[%clk 00:02:36]} {[%emt 00:00:33]} 21. dxc6 {[%clk
00:16:45]} {[%emt 00:00:02]} Qc8 {[%clk 00:02:02]} {[%emt 00:00:38]} 22. Be5
{[%clk 00:16:28]} {[%emt 00:00:22]} Ne8 {[%clk 00:01:14]} {[%emt 00:00:53]} 23.
Bxe4 {[%clk 00:13:16]} {[%emt 00:03:17]} Nc7 {[%clk 00:01:01]} {[%emt
00:00:18]} 24. Rd7 {[%clk 00:12:26]} {[%emt 00:00:55]} Rd8 {[%clk 00:01:02]}
{[%emt 00:00:05]} 25. Bf5 {[%clk 00:09:36]} {[%emt 00:02:54]} Rxd7 {[%clk
00:00:48]} {[%emt 00:00:20]} 26. cxd7 {[%clk 00:09:37]} {[%emt 00:00:03]} Qd8
{[%clk 00:00:46]} {[%emt 00:00:07]} 27. Bxc7 {[%clk 00:09:13]} {[%emt
00:00:29]} Rxc7 {[%clk 00:00:50]} 28. Qe8+ {[%clk 00:09:15]} {[%emt 00:00:03]}
1-0

[Event "New Zealand Rapid Championship"]
[Site "Wellington"]
[Date "2023.01.12"]
[Round "5.14"]
[White "Burns, Christopher J"]
[Black "Tao, Junqing Jerome"]
[Result "1-0"]
[TimeControl "25+5"]
[WhiteFideId "4300920"]
[BlackFideId "4313895"]
[WhiteElo "2031"]
[BlackElo "1148"]

1. e4 {[%clk 00:25:09]} {[%emt 00:00:12]} e5 2. Nf3 {[%clk 00:25:07]} Nc6
{[%clk 00:25:13]} 3. d4 {[%clk 00:25:03]} {[%emt 00:00:13]} exd4 {[%clk
00:25:17]} 4. Nxd4 {[%clk 00:25:06]} Bc5 {[%clk 00:25:21]} 5. Nxc6 {[%clk
00:24:37]} {[%emt 00:00:32]} bxc6 {[%clk 00:25:23]} {[%emt 00:00:02]} 6. Nc3
{[%clk 00:23:59]} {[%emt 00:00:43]} h6 {[%clk 00:24:12]} {[%emt 00:01:17]} 7.
Bc4 {[%clk 00:23:35]} {[%emt 00:00:28]} Nf6 {[%clk 00:24:13]} {[%emt 00:00:04]}
8. O-O {[%clk 00:23:22]} {[%emt 00:00:17]} O-O {[%clk 00:24:15]} {[%emt
00:00:02]} 9. e5 {[%clk 00:23:03]} {[%emt 00:00:24]} Ne8 {[%clk 00:24:16]}
{[%emt 00:00:04]} 10. Qf3 {[%clk 00:22:29]} {[%emt 00:00:39]} Bb7 {[%clk
00:23:43]} {[%emt 00:00:39]} 11. Bf4 {[%clk 00:21:24]} {[%emt 00:01:08]} d5
{[%clk 00:23:35]} {[%emt 00:00:14]} 12. Rad1 {[%clk 00:19:45]} {[%emt
00:01:44]} Qe7 {[%clk 00:23:00]} {[%emt 00:00:39]} 13. Bd3 {[%clk 00:18:46]}
{[%emt 00:01:04]} f6 {[%clk 00:22:48]} {[%emt 00:00:18]} 14. Qg3 {[%clk
00:16:31]} {[%emt 00:02:20]} fxe5 {[%clk 00:21:53]} {[%emt 00:01:00]} 15. Bxe5
{[%clk 00:15:49]} {[%emt 00:00:46]} Nd6 {[%clk 00:21:56]} {[%emt 00:00:02]} 16.
Rde1 {[%clk 00:14:40]} {[%emt 00:01:13]} Qd7 {[%clk 00:20:37]} {[%emt
00:01:25]} 17. Na4 {[%clk 00:13:46]} {[%emt 00:01:07]} Bb6 {[%clk 00:20:26]}
{[%emt 00:00:07]} 18. Nxb6 {[%clk 00:13:18]} {[%emt 00:00:34]} axb6 {[%clk
00:20:28]} {[%emt 00:00:03]} 19. Qg6 {[%clk 00:12:28]} {[%emt 00:00:53]} Ne4
{[%clk 00:18:37]} {[%emt 00:01:58]} 20. Rxe4 {[%clk 00:12:04]} {[%emt
00:00:40]} dxe4 {[%clk 00:18:38]} 21. Bc4+ {[%clk 00:12:00]} {[%emt 00:00:02]}
Rf7 {[%clk 00:18:16]} {[%emt 00:00:26]} 22. Qxg7# {[%clk 00:11:22]} {[%emt
00:00:03]} 1-0

[Event "New Zealand Rapid Championship"]
[Site "Wellington"]
[ePGN "0.1;DGT LiveChess/2.2.5"]
[Date "2023.01.12"]
[Round "6.1"]
[White "Xie, Felix"]
[Black "Croad, Nicolas"]
[Result "1-0"]
[TimeControl "25+5"]
[WhiteTitle "CM"]
[BlackTitle "FM"]
[WhiteFideId "4308174"]
[BlackFideId "4300793"]
[WhiteElo "2232"]
[BlackElo "2309"]

1. d4 {[%clk 00:25:08]} {[%emt 00:00:01]} Nf6 {[%clk 00:25:09]} {[%emt
00:00:01]} 2. c4 {[%clk 00:25:12]} e6 {[%clk 00:25:13]} 3. g3 {[%clk 00:25:17]}
{[%emt 00:00:02]} Bb4+ {[%clk 00:25:15]} {[%emt 00:00:02]} 4. Bd2 {[%clk
00:25:21]} Be7 {[%clk 00:25:19]} {[%emt 00:00:01]} 5. Nf3 {[%clk 00:25:25]} d5
{[%clk 00:25:22]} {[%emt 00:00:03]} 6. Bg2 {[%clk 00:25:29]} O-O {[%clk
00:25:25]} {[%emt 00:00:02]} 7. O-O {[%clk 00:25:33]} c6 {[%clk 00:25:27]}
{[%emt 00:00:04]} 8. Qc2 {[%clk 00:25:37]} Nbd7 {[%clk 00:25:31]} {[%emt
00:00:02]} 9. Rd1 {[%clk 00:25:41]} b6 {[%clk 00:25:34]} {[%emt 00:00:03]} 10.
b3 {[%clk 00:25:46]} Ba6 {[%clk 00:25:33]} {[%emt 00:00:05]} 11. a4 {[%clk
00:25:50]} Rc8 {[%clk 00:25:17]} {[%emt 00:00:21]} 12. a5 {[%clk 00:25:54]}
{[%emt 00:00:03]} b5 {[%clk 00:25:21]} 13. c5 {[%clk 00:25:37]} {[%emt
00:00:22]} b4 {[%clk 00:25:05]} {[%emt 00:00:21]} 14. Bxb4 {[%clk 00:24:39]}
{[%emt 00:01:02]} Ne4 {[%clk 00:24:52]} {[%emt 00:00:18]} 15. Ne1 {[%clk
00:22:44]} {[%emt 00:02:00]} f5 {[%clk 00:24:39]} {[%emt 00:00:18]} 16. f3
{[%clk 00:22:32]} {[%emt 00:00:17]} Nef6 {[%clk 00:22:42]} {[%emt 00:02:01]} 17.
Nd3 {[%clk 00:22:04]} {[%emt 00:00:33]} Qe8 {[%clk 00:22:08]} {[%emt 00:00:39]}
18. Bd2 {[%clk 00:20:35]} {[%emt 00:01:34]} h6 {[%clk 00:21:13]} {[%emt
00:01:00]} 19. Nc3 {[%clk 00:19:26]} {[%emt 00:01:14]} g5 {[%clk 00:20:46]}
{[%emt 00:00:32]} 20. b4 {[%clk 00:18:29]} {[%emt 00:01:02]} Rb8 {[%clk
00:20:21]} {[%emt 00:00:30]} 21. Rab1 {[%clk 00:18:29]} {[%emt 00:00:06]} Bb5
{[%clk 00:17:42]} {[%emt 00:02:43]} 22. Re1 {[%clk 00:17:02]} {[%emt 00:01:32]}
Qg6 {[%clk 00:15:55]} {[%emt 00:01:52]} 23. Nf2 {[%clk 00:15:59]} {[%emt
00:01:07]} Qg7 {[%clk 00:12:50]} {[%emt 00:03:11]} 24. Nxb5 {[%clk 00:14:51]}
{[%emt 00:01:13]} Rxb5 {[%clk 00:12:49]} {[%emt 00:00:06]} 25. Bf1 {[%clk
00:14:54]} {[%emt 00:00:01]} Rb7 {[%clk 00:11:29]} {[%emt 00:01:25]} 26. e3
{[%clk 00:13:37]} {[%emt 00:01:22]} g4 {[%clk 00:10:40]} {[%emt 00:00:55]} 27.
f4 {[%clk 00:12:40]} {[%emt 00:01:02]} h5 {[%clk 00:10:36]} {[%emt 00:00:08]}
28. b5 {[%clk 00:12:08]} {[%emt 00:00:37]} cxb5 {[%clk 00:10:34]} {[%emt
00:00:08]} 29. a6 {[%clk 00:11:54]} {[%emt 00:00:19]} Rc7 {[%clk 00:10:04]}
{[%emt 00:00:35]} 30. Ba5 {[%clk 00:11:42]} {[%emt 00:00:16]} Rcc8 {[%clk
00:10:06]} {[%emt 00:00:04]} 31. Bxb5 {[%clk 00:11:26]} {[%emt 00:00:21]} h4
{[%clk 00:09:51]} {[%emt 00:00:20]} 32. Bxd7 {[%clk 00:09:18]} {[%emt
00:02:14]} Nxd7 {[%clk 00:09:54]} {[%emt 00:00:02]} 33. Rb7 {[%clk 00:09:22]}
Nb8 {[%clk 00:09:23]} {[%emt 00:00:36]} 34. Bc7 {[%clk 00:08:41]} {[%emt
00:00:45]} Nc6 {[%clk 00:04:27]} {[%emt 00:05:01]} 35. Qa4 {[%clk 00:07:47]}
{[%emt 00:00:59]} Nd8 {[%clk 00:04:30]} {[%emt 00:00:02]} 36. Be5 {[%clk
00:07:01]} {[%emt 00:00:51]} Qf7 {[%clk 00:04:28]} {[%emt 00:00:08]} 37. Rc1
{[%clk 00:05:58]} {[%emt 00:01:08]} Qe8 {[%clk 00:02:58]} {[%emt 00:01:35]} 38.
Qxe8 {[%clk 00:05:40]} {[%emt 00:00:23]} Rxe8 {[%clk 00:03:02]} 39. Rxa7 {[%clk
00:05:35]} {[%emt 00:00:10]} Nc6 {[%clk 00:03:03]} {[%emt 00:00:04]} 40. Rb7
{[%clk 00:05:39]} Nxe5 {[%clk 00:02:53]} {[%emt 00:00:16]} 41. fxe5 {[%clk
00:05:10]} {[%emt 00:00:34]} Bg5 {[%clk 00:01:53]} {[%emt 00:01:04]} 42. Rc3
{[%clk 00:05:11]} {[%emt 00:00:04]} Rc6 {[%clk 00:01:47]} {[%emt 00:00:12]} 43.
Rb6 {[%clk 00:04:44]} {[%emt 00:00:32]} Rc7 {[%clk 00:01:13]} {[%emt 00:00:39]}
44. Kf1 {[%clk 00:04:04]} {[%emt 00:00:45]} Kf7 {[%clk 00:00:55]} {[%emt
00:00:22]} 45. Rb7 {[%clk 00:03:55]} {[%emt 00:00:14]} Rec8 {[%clk 00:00:59]}
{[%emt 00:00:01]} 46. Ke2 {[%clk 00:03:47]} {[%emt 00:00:13]} Ke7 {[%clk
00:01:00]} {[%emt 00:00:04]} 47. Rcb3 {[%clk 00:03:44]} {[%emt 00:00:07]} Kd7
{[%clk 00:00:43]} {[%emt 00:00:22]} 48. R3b6 {[%clk 00:03:22]} {[%emt
00:00:27]} Bd8 {[%clk 00:00:28]} {[%emt 00:00:21]} 49. Rd6+ {[%clk 00:03:10]}
{[%emt 00:00:17]} Ke7 {[%clk 00:00:31]} {[%emt 00:00:01]} 50. Rbb6 {[%clk
00:03:08]} {[%emt 00:00:07]} Ra7 {[%clk 00:00:19]} {[%emt 00:00:18]} 51. Rxe6+
{[%clk 00:03:12]} {[%emt 00:00:02]} Kf7 {[%clk 00:00:23]} 52. Rb7+ {[%clk
00:01:29]} {[%emt 00:01:49]} Rxb7 {[%clk 00:00:26]} {[%emt 00:00:03]} 53. axb7
{[%clk 00:01:33]} Rb8 {[%clk 00:00:30]} 54. Rh6 {[%clk 00:01:38]} Kg7 {[%clk
00:00:19]} {[%emt 00:00:16]} 55. Rd6 {[%clk 00:01:42]} Rxb7 {[%clk 00:00:20]}
{[%emt 00:00:05]} 56. Rxd8 {[%clk 00:01:46]} Rb2+ {[%clk 00:00:24]} 57. Kf1
{[%clk 00:01:50]} Rb1+ {[%clk 00:00:22]} {[%emt 00:00:07]} 58. Kg2 {[%clk
00:01:45]} {[%emt 00:00:10]} Rb2 {[%clk 00:00:16]} {[%emt 00:00:12]} 59. gxh4
{[%clk 00:01:46]} {[%emt 00:00:03]} Re2 {[%clk 00:00:20]} 60. c6 {[%clk
00:01:45]} {[%emt 00:00:06]} Rxe3 {[%clk 00:00:10]} {[%emt 00:00:14]} 61. c7
{[%clk 00:01:48]} {[%emt 00:00:03]} f4 {[%clk 00:00:14]} 62. Rg8+ {[%clk
00:01:49]} {[%emt 00:00:05]} 1-0